bitfinex-derivatives/quotes_SOLF0:USTF0_20250709
["timestamp","ask_amount","ask_price","bid_price","bid_amount"]
[1752090538194,7.71299756,156.88,156.8,62.0]
[1752090538488,432.26878172,156.92,156.81,6.14878172]
[1752090538691,6.3732,156.87,156.81,6.3754]
[1752090538897,6.14878172,156.88,156.79,2.1509]
[1752090539098,6.3735,156.86,156.8,6.3759]
[1752090539300,6.14878172,156.88,156.79,2.1509]
[1752090539502,7.71291381,156.87,156.79,2.1509]
[1752090539695,6.14878172,156.89,156.79,2.1509]
[1752090539995,6.14878172,156.87,156.76,6.14878172]
[1752090540205,6.14878172,156.87,156.78,6.14878172]
[1752090540500,6.3739,156.85,156.78,6.14878172]
[1752090540694,2.317,156.88,156.78,6.14878172]
[1752090540890,7.71286823,156.87,156.8,6.14878172]
[1752090541099,7.71286823,156.86,156.82,6.14878172]
[1752090541307,2.3566,156.91,156.87,6.373]
[1752090541603,7.71151528,156.9,156.85,6.14878172]
[1752090541797,7.71151528,156.89,156.85,6.14878172]
[1752090542000,7.71151528,156.88,156.84,62.0]
[1752090542198,7.71151528,156.87,156.86,6.14878172]
[1752090542396,7.71151528,156.87,156.86,12.52228172]
[1752090542896,550.68,156.94,156.86,6.14878172]
[1752090543097,14.05773375,156.95,156.89,6.14878172]
[1752090543302,20.20651547,156.95,156.86,6.14878172]
[1752090543498,20.20651547,156.95,156.84,62.0]
[1752090543703,20.20651547,156.95,156.85,6.14878172]
[1752090544108,11.30725649,156.95,156.85,6.14878172]
[1752090544297,20.20837905,156.95,156.85,6.14878172]
[1752090545113,6.14878172,156.93,156.83,6.14878172]
[1752090545397,6.14878172,156.93,156.8,2.228]
[1752090545398,6.1415741,156.91,156.82,6.1415741]
[1752090545604,2.278,156.9,156.82,6.1415741]
[1752090545799,2.278,156.9,156.83,6.3746]
[1752090545999,2.278,156.9,156.8,2.228]
[1752090546000,6.1415741,156.89,156.8,8.3695741]
[1752090546401,6.1415741,156.89,156.79,6.1415741]
[1752090547799,427.358,156.9,156.81,6.1415741]
[1752090548705,6.373,156.88,156.83,6.3744]
[1752090548905,427.358,156.9,156.81,6.1415741]
[1752090549805,427.358,156.9,156.83,6.1415741]
[1752090550307,433.7302,156.9,156.83,6.1415741]
[1752090550601,427.358,156.9,156.85,6.1415741]
[1752090550804,550.6,156.92,156.85,6.1415741]
[1752090551112,0.04496652,156.89,156.87,6.1415741]
[1752090551400,0.04496652,156.89,156.88,6.3727]
[1752090551604,5.15847477,156.95,156.87,6.1415741]
[1752090551800,5.15847477,156.95,156.91,6.1415741]
[1752090552108,0.04078327,156.93,156.91,6.1415741]
[1752090552702,1e-08,156.95,156.91,6.1415741]
[1752090552906,1e-08,156.95,156.9,0.04332547]
[1752090553401,1e-08,156.95,156.89,6.1415741]
[1752090553606,6.37010001,156.95,156.9,6.3717]
[1752090553806,1e-08,156.95,156.87,6.1415741]
[1752090554011,1e-08,156.95,156.9,0.04564646]
[1752090554209,1e-08,156.95,156.92,6.371]
[1752090554410,1e-08,156.95,156.9,0.04564646]
[1752090555008,1e-08,156.95,156.91,6.1415741]
[1752090555210,1e-08,156.95,156.94,6.3702]
[1752090555905,1e-08,156.95,156.94,68.3702]
[1752090556104,4.4906,157.03,156.99,6.3679]
[1752090556306,7.63026953,157.02,156.96,6.1415741]
[1752090556507,7.63026953,157.01,156.94,68.1415741]
[1752090556813,6.3685,156.99,156.97,0.04026043]
[1752090557308,4.4906,157.03,156.97,0.04026043]
[1752090557515,7.61944792,157.02,156.97,0.04026043]
[1752090557713,7.61944792,157.01,156.97,0.04026043]
[1752090557914,13.98754792,157.0,156.97,0.04026043]
[1752090558217,7.61944792,156.99,156.97,0.04026043]
[1752090558406,4.4906,157.03,156.97,0.04026043]
[1752090558603,7.61686127,157.02,156.97,0.04026043]
[1752090558802,7.61686127,157.02,156.94,68.1415741]
[1752090558803,7.61686127,157.01,156.92,6.1415741]
[1752090559112,7.61686127,157.0,156.92,6.1415741]
[1752090559312,2.1672,157.03,156.94,6.1415741]
[1752090559508,6.3689,156.98,156.94,6.1415741]
[1752090559711,7.69509702,157.01,156.92,6.1415741]
[1752090559911,7.69509702,157.0,156.92,6.1415741]
[1752090560113,6.3689,156.98,156.92,6.1415741]
[1752090560415,6.3689,156.98,156.93,6.3704]
[1752090560711,6.3691,156.97,156.92,6.1415741]
[1752090561013,2.1672,157.03,156.93,6.3706]
[1752090561213,13.83500804,157.02,156.93,6.3706]
[1752090561408,7.69343394,157.01,156.93,6.3706]
[1752090561607,7.69343394,157.0,156.94,6.1415741]
[1752090561808,7.69343394,156.99,156.94,6.1415741]
[1752090562010,8.3296741,157.05,156.95,6.3697]
[1752090562202,6.1415741,157.03,156.93,6.1415741]
[1752090562403,7.69151967,157.02,156.92,6.1415741]
[1752090562606,6.3689,156.98,156.92,6.1415741]
[1752090563016,211.5,157.04,156.92,6.1415741]
[1752090563215,6.1415741,157.01,156.93,6.3706]
[1752090563405,7.69058284,157.0,156.92,6.1415741]
[1752090563811,6.3689,156.98,156.93,6.3705]
[1752090564504,6.3689,156.98,156.94,6.3702]
[1752090564706,6.3689,156.98,156.92,6.1415741]
[1752090565118,3.81479067,156.99,156.94,6.1415741]
[1752090565316,19.75089895,157.04,156.94,6.1415741]
[1752090565512,11.35992485,157.03,156.94,6.1415741]
[1752090565716,6.3674,157.01,156.97,6.3688]
[1752090565916,3.81423306,157.0,156.97,6.3688]
[1752090566718,10.18213306,157.0,156.96,12.5108741]
[1752090566919,6.3679,157.0,156.96,12.5108741]
[1752090567120,10.18213306,157.0,156.96,12.5108741]
[1752090567324,11.38655668,157.01,156.91,6.1415741]
[1752090567620,6.1415741,157.02,156.91,6.1415741]
[1752090567621,11.38655668,157.0,156.91,6.1415741]
[1752090567811,6.3688,156.98,156.91,6.1415741]
[1752090568216,6.3688,156.98,156.94,6.3702]
[1752090568522,219.5309741,157.04,156.95,6.1415741]
[1752090568732,6.1415741,157.02,156.93,6.1415741]
[1752090569016,6.1415741,157.0,156.91,6.1415741]
[1752090569220,11.37494214,156.99,156.91,6.1415741]
[1752090569414,6.3695,156.96,156.91,6.1415741]
[1752090569722,13.68944214,156.98,156.91,6.1415741]
[1752090569912,8.6093,156.97,156.93,6.3704]
[1752090570320,2.24,156.97,156.89,6.1415741]
[1752090570624,13.6226917,156.97,156.89,6.1415741]
[1752090571117,6.3694,156.96,156.92,6.3708]
[1752090571520,6.3694,156.96,156.89,6.1415741]
[1752090571521,3.82324168,156.96,156.89,6.1415741]
[1752090571817,2.24,156.97,156.89,6.1415741]
[1752090572025,11.40564026,156.96,156.88,6.1415741]
[1752090572220,10.19509156,156.95,156.9,6.3716]
[1752090572416,2.24,156.97,156.88,6.1415741]
[1752090572616,2.24,156.97,156.9,6.1415741]
[1752090573425,2.24,156.97,156.94,6.3699]
[1752090573615,2.24,156.97,156.87,6.1415741]
[1752090573919,6.3695,156.96,156.9,6.1415741]
[1752090574120,2.24,156.97,156.88,6.1415741]
[1752090574321,6.1415741,156.96,156.88,6.1415741]
[1752090574522,2.24,156.97,156.88,6.1415741]
[1752090574920,2.24,156.97,156.9,6.1415741]
[1752090575622,2.24,156.97,156.93,6.3703]
[1752090576015,2.24,156.97,156.94,6.3699]
[1752090576824,2.24,156.97,156.93,6.3705]
[1752090577018,2.24,156.97,156.9,6.1415741]
[1752090577322,2.24,156.97,156.94,6.37]
[1752090577515,2.24,156.97,156.92,6.1415741]
[1752090577718,2.24,156.97,156.85,12.7473]
[1752090577916,2.24,156.97,156.94,6.3701]
[1752090578115,2.24,156.97,156.87,6.1415741]
[1752090578116,6.1415741,157.05,156.95,6.1415741]
[1752090578314,214.942,157.04,156.95,6.1415741]
[1752090578621,6.3673,157.02,156.95,6.1415741]
[1752090579020,6.3673,157.02,156.97,6.3687]
[1752090579225,4.382,157.04,156.95,6.1415741]
[1752090579428,4.382,157.04,156.97,6.1415741]
[1752090579725,4.382,157.04,156.99,6.3679]
[1752090580426,4.382,157.04,156.97,12.5101741]
[1752090580622,4.382,157.04,156.97,6.1415741]
[1752090581022,6.3672,157.02,156.98,6.3683]
[1752090581223,4.382,157.04,156.97,6.1415741]
[1752090582322,4.382,157.04,156.98,6.3684]
[1752090582724,4.382,157.04,156.97,6.1415741]
[1752090582923,6.3668,157.03,156.99,6.368]
[1752090583517,4.382,157.04,156.96,6.1415741]
[1752090584130,6.3671,157.02,156.98,6.3684]
[1752090584331,11.40869577,157.01,156.98,6.3684]
[1752090584532,4.382,157.04,156.96,6.1415741]
[1752090584828,6.3671,157.02,156.98,6.3682]
[1752090585030,11.40804682,157.01,156.96,6.1415741]
[1752090585225,6.3671,157.02,156.98,6.3684]
[1752090585425,11.40713043,157.01,156.98,6.3684]
[1752090585629,6.3667,157.03,156.96,6.1415741]
[1752090585830,11.40758806,157.02,157.0,6.3676]
[1752090586028,4.382,157.04,156.98,6.1415741]
[1752090586330,11.40694609,157.03,156.98,6.1415741]
[1752090586531,6.3668,157.03,156.99,6.368]
[1752090586727,7.58384476,157.02,156.99,6.368]
[1752090586929,8.90112256,157.16,157.01,6.12911666]
[1752090587122,12.7276,157.1,156.88,4.6045]
[1752090587328,11.40458557,157.09,157.0,6.12911666]
[1752090587532,11.40458557,157.08,156.88,4.6045]
[1752090587725,6.12911666,157.05,156.96,6.12911666]
[1752090587928,17.77108557,157.04,157.0,6.3677]
[1752090588133,7.58176172,157.03,156.98,6.12911666]
[1752090588435,209.96,157.05,157.0,6.12911666]
[1752090588639,7.58471839,157.04,157.0,6.12911666]
[1752090588932,6.3667,157.03,157.0,12.49661666]
[1752090589236,3.8207319,157.04,157.0,12.49661666]
[1752090589429,7.58623016,157.03,157.0,12.49661666]
[1752090589629,209.96,157.05,157.0,12.49661666]
[1752090589932,13.95245923,157.04,157.01,6.3673]
[1752090590138,7.58615923,157.03,157.02,6.12911666]
[1752090590433,7.58615923,157.03,157.0,6.12911666]
[1752090590628,6.3664,157.04,157.0,12.49661666]
[1752090590822,7.58775771,157.03,156.91,62.0]
[1752090591024,13.71756041,157.02,156.92,6.12911666]
[1752090591228,6.12911666,157.0,156.91,6.12911666]
[1752090591432,7.58855954,156.99,156.91,6.12911666]
[1752090591634,13.7176762,156.98,156.89,6.12911666]
[1752090591827,7.59321255,156.97,156.89,6.12911666]
[1752090592031,7.59356335,156.96,156.89,6.12911666]
[1752090592232,13.96366335,156.95,156.89,6.12911666]
[1752090592427,6.3701,156.95,156.89,6.12911666]
[1752090592632,6.3701,156.95,156.91,6.3711]
[1752090592826,6.3701,156.95,156.89,6.12911666]
[1752090593036,209.76,156.99,156.91,6.12911666]
[1752090593226,11.42172905,156.98,156.91,12.50041666]
[1752090593533,209.76,156.99,156.88,4.6045]
[1752090593534,11.42172905,156.97,156.88,4.6045]
[1752090593731,11.42172905,156.96,156.89,6.3722]
[1752090593926,6.3713,156.92,156.85,550.16]
[1752090594227,6.12911666,156.97,156.87,6.12911666]
[1752090594429,7.65746053,156.96,156.87,6.12911666]
[1752090594728,7.65746053,156.95,156.87,6.12911666]
[1752090594934,7.65746053,156.94,156.87,6.12911666]
[1752090595129,7.65746053,156.93,156.89,6.12911666]
[1752090595436,7.65934937,156.92,156.89,6.12911666]
[1752090595630,6.3713,156.92,156.89,6.12911666]
[1752090596135,6.12911666,156.98,156.89,12.50131666]
[1752090596326,6.371,156.93,156.89,12.50131666]
[1752090596528,7.65935218,156.92,156.91,12.50061666]
[1752090596726,209.76,156.99,156.91,12.50061666]
[1752090596940,6.3698,156.96,156.91,12.50061666]
[1752090597237,7.66105384,156.95,156.92,6.3709]
[1752090597427,7.66105384,156.94,156.91,6.12911666]
[1752090597634,4.4772,157.01,156.94,6.3702]
[1752090597835,7.66329123,157.0,156.94,6.3702]
[1752090598139,7.66329123,156.99,156.93,12.49961666]
[1752090598337,7.66329123,156.98,156.93,12.49961666]
[1752090598536,14.03239123,156.97,156.93,12.49961666]
[1752090598739,7.66329123,156.96,156.93,12.49961666]
[1752090598930,7.66329123,156.95,156.93,12.49961666]
[1752090599138,4.4772,157.01,156.93,6.12911666]
[1752090599442,7.60616055,157.0,156.76,550.22]
[1752090599634,6.3713,156.92,156.88,6.3726]
[1752090600033,7.60810914,156.91,156.88,6.3726]
[1752090600238,7.60810914,156.9,156.79,2.2519]
[1752090600437,8.90112256,157.0,156.84,6.14014718]
[1752090600636,0.04677378,156.86,156.84,6.14014718]
[1752090600837,0.04677378,156.86,156.79,2.2519]
[1752090600838,2.157,156.93,156.85,6.13972615]
[1752090601037,7.60809595,156.92,156.89,6.13972615]
[1752090601345,6.13647233,156.92,156.83,6.13647233]
[1752090601739,2.3536,156.91,156.83,6.13647233]
[1752090601940,4.7162,156.91,156.83,6.13647233]
[1752090602142,4.7162,156.91,156.85,0.04299166]
[1752090602549,4.7162,156.91,156.85,6.17946399]
[1752090602837,6.3725,156.89,156.85,0.04299166]
[1752090603041,10.85267233,156.91,156.85,0.04299166]
[1752090603442,6.3727,156.88,156.85,0.04299166]
[1752090603742,10.85267233,156.91,156.85,0.04299166]
[1752090603941,6.13647233,156.89,156.85,0.04299166]
[1752090604542,6.3732,156.87,156.85,0.04299166]
[1752090604742,10.85267233,156.91,156.85,0.04299166]
[1752090605144,6.3733,156.87,156.85,0.04299166]
[1752090605842,10.85267233,156.91,156.85,0.04299166]
[1752090605843,6.13647233,156.9,156.85,0.04299166]
[1752090606243,4.7162,156.91,156.85,6.41669166]
[1752090606446,10.85267233,156.91,156.85,0.04299166]
[1752090606846,6.3732,156.87,156.85,0.04299166]
[1752090607049,10.85267233,156.91,156.85,0.04299166]
[1752090607347,6.3733,156.87,156.85,0.04299166]
[1752090608148,6.3735,156.86,156.85,0.04299166]
[1752090608344,10.85267233,156.91,156.85,0.04299166]
[1752090608745,6.3734,156.87,156.85,0.04299166]
[1752090609250,6.3733,156.87,156.85,0.04299166]
[1752090609645,10.85267233,156.91,156.85,0.04299166]
[1752090609947,4.7162,156.91,156.85,0.04299166]
[1752090610243,6.3726,156.89,156.85,6.41679166]
[1752090610450,6.3726,156.89,156.85,0.04299166]
[1752090611048,6.3726,156.89,156.86,6.3735]
[1752090611249,6.372,156.9,156.85,0.04299166]
[1752090611451,2.3536,156.91,156.85,6.17946399]
[1752090611653,6.13647233,156.94,156.85,6.17946399]
[1752090611852,6.3714,156.92,156.85,6.17946399]
[1752090612047,10.63767233,156.95,156.87,6.3727]
[1752090612350,10.63767233,156.95,156.85,6.17946399]
[1752090612351,219.55767233,156.95,156.85,6.17946399]
[1752090612545,219.55767233,156.95,156.85,6.13647233]
[1752090612742,219.55767233,156.95,156.88,6.42004766]
[1752090613252,6.13647233,156.91,156.88,0.04744766]
[1752090613453,6.3732,156.87,156.82,6.13647233]
[1752090613759,6.13647233,156.91,156.81,6.13647233]
[1752090613952,213.4212,156.95,156.81,6.13647233]
[1752090613953,6.3738,156.86,156.81,6.13647233]
[1752090614145,6.13647233,156.89,156.81,6.13647233]
[1752090614346,6.3737,156.86,156.81,6.13647233]
[1752090614743,6.13647233,156.89,156.82,6.3748]
[1752090614945,6.13647233,156.87,156.77,6.13647233]
[1752090615454,211.1693,156.88,156.81,6.13647233]
[1752090615655,559.16205548,156.96,156.85,6.13647233]
[1752090615954,559.16205548,156.96,156.78,6.13647233]
[1752090615955,6.13647233,156.94,156.84,6.13647233]
[1752090616150,6.13647233,156.94,156.79,12.7523]
[1752090616347,6.13647233,156.94,156.83,6.13647233]
[1752090616850,6.3725,156.89,156.83,6.13647233]
[1752090617050,2.3693,156.95,156.87,6.13647233]
[1752090617357,2.3693,156.95,156.89,6.13647233]
[1752090617653,550.28,156.96,156.89,6.13647233]
[1752090618143,6.3702,156.95,156.92,6.3708]
[1752090618653,6.13647233,156.95,156.88,6.3725]
[1752090618849,6.13647233,156.95,156.85,6.13647233]
[1752090619257,6.3714,156.92,156.85,6.13647233]
[1752090619457,556.41647233,156.96,156.85,6.13647233]
[1752090619850,556.41647233,156.96,156.89,6.3719]
[1752090620155,556.41647233,156.96,156.85,6.13647233]
[1752090620366,550.28,156.96,156.87,6.13647233]
[1752090621048,6.3707,156.93,156.9,6.3716]
[1752090621254,550.28,156.96,156.9,6.3716]
[1752090621450,556.41647233,156.96,156.9,6.3716]
[1752090621653,6.3705,156.94,156.9,6.3716]
[1752090621952,208.48,156.95,156.87,6.13647233]
[1752090622152,214.8501,156.95,156.87,6.13647233]
[1752090622350,214.8501,156.95,156.84,2.3147]
[1752090622351,208.48,156.95,156.84,2.3147]
[1752090622554,550.28,156.96,156.89,6.13647233]
[1752090622749,550.28,156.96,156.94,6.3702]
[1752090623057,6.3706,156.93,156.86,6.13647233]
[1752090623257,6.3706,156.93,156.9,6.3716]
[1752090623463,556.41647233,156.96,156.86,6.13647233]
[1752090624257,6.3705,156.94,156.86,6.13647233]
[1752090624457,6.3705,156.94,156.91,6.3714]
[1752090624852,550.28,156.96,156.88,6.13647233]
[1752090625250,550.28,156.96,156.9,6.13647233]
[1752090625457,550.28,156.96,156.94,6.3699]
[1752090625754,550.28,156.96,156.88,6.13647233]
[1752090626559,550.28,156.96,156.93,6.3704]
[1752090626857,550.28,156.96,156.88,6.13647233]
[1752090627260,208.18,156.98,156.88,6.13647233]
[1752090627454,8.27187233,157.0,156.9,6.13647233]
[1752090627656,208.18,156.99,156.96,6.3694]
[1752090628156,8.27187233,157.0,156.97,6.369]
[1752090628463,8.27187233,157.0,156.92,6.13647233]
[1752090628464,2.1354,157.0,156.92,6.13647233]
[1752090628761,210.2554,157.0,156.92,6.13647233]
[1752090629259,210.2154,157.0,156.92,6.13647233]
[1752090629662,216.35187233,157.0,156.92,6.13647233]
[1752090629961,6.3685,156.99,156.95,6.3696]
[1752090630361,216.5833,157.0,156.96,6.3692]
[1752090630762,210.2154,157.0,156.92,6.13647233]
[1752090631164,6.3685,156.99,156.95,6.3697]
[1752090631463,210.2154,157.0,156.92,6.13647233]
[1752090631664,6.3688,156.98,156.92,6.13647233]
[1752090632263,216.35187233,157.0,156.9,6.13647233]
[1752090632463,210.2154,157.0,156.9,6.13647233]
[1752090632666,216.35187233,157.0,156.9,6.13647233]
[1752090632862,6.3693,156.97,156.94,6.3702]
[1752090633264,6.3695,156.96,156.9,6.13647233]
[1752090633464,6.13647233,156.98,156.89,6.13647233]
[1752090633666,210.2154,157.0,156.89,6.13647233]
[1752090633866,2.1823,156.97,156.92,6.371]
[1752090634066,6.3701,156.95,156.92,6.371]
[1752090634665,8.31877233,156.97,156.9,6.3717]
[1752090634962,6.13647233,156.95,156.85,6.13647233]
[1752090635368,6.3713,156.92,156.89,6.3722]
[1752090635564,6.3713,156.92,156.85,6.13647233]
[1752090635866,6.13647233,156.95,156.85,6.13647233]
[1752090636272,6.3701,156.95,156.91,6.3711]
[1752090636570,207.78,156.96,156.89,6.13647233]
[1752090636774,6.3714,156.92,156.88,6.3724]
[1752090636977,6.3714,156.92,156.85,6.13647233]
[1752090637476,213.81647233,156.95,156.87,6.13647233]
[1752090638073,213.81647233,156.95,156.85,6.13647233]
[1752090638272,6.13647233,156.95,156.85,6.13647233]
[1752090638477,6.3713,156.92,156.89,6.3719]
[1752090639076,6.13647233,156.93,156.84,8.45117233]
[1752090639379,6.13647233,156.93,156.84,6.13647233]
[1752090639380,2.2917,156.92,156.84,6.13647233]
[1752090639573,6.3717,156.91,156.88,6.3723]
[1752090639773,2.2917,156.92,156.88,6.3723]
[1752090639973,2.2917,156.92,156.84,6.13647233]
[1752090640377,6.13647233,156.96,156.86,6.13647233]
[1752090640677,6.3709,156.93,156.9,6.3716]
[1752090640877,6.13647233,156.96,156.86,6.13647233]
[1752090641579,6.13647233,156.96,156.81,550.32]
[1752090641778,6.3717,156.91,156.87,6.3727]
[1752090642078,6.3717,156.91,156.86,6.13647233]
[1752090642269,6.13647233,156.96,156.86,6.13647233]
[1752090642480,2.1823,156.97,156.88,6.13647233]
[1752090642874,6.3701,156.95,156.92,6.3707]
[1752090643581,6.3696,156.96,156.93,6.3706]
[1752090643777,2.1823,156.97,156.9,6.13647233]
[1752090643979,6.3703,156.94,156.91,6.3713]
[1752090644480,6.3711,156.92,156.89,6.3721]
[1752090644676,6.3711,156.92,156.87,6.13647233]
[1752090645076,6.3711,156.92,156.9,6.3719]
[1752090645279,6.3708,156.93,156.87,6.13647233]
[1752090645583,6.3708,156.93,156.9,6.3718]
[1752090645784,6.13647233,156.96,156.87,6.13647233]
[1752090646185,6.3711,156.92,156.85,6.13647233]
[1752090646486,6.3711,156.92,156.89,6.3721]
[1752090646683,6.3717,156.91,156.85,6.13647233]
[1752090647085,6.3717,156.91,156.88,6.3724]
[1752090647488,6.13647233,156.94,156.81,550.32]
[1752090647684,6.13647233,156.92,156.82,6.13647233]
[1752090647881,6.13647233,156.9,156.8,2.2181]
[1752090648077,2.1778,156.91,156.79,6.13647233]
[1752090648078,6.13647233,156.88,156.79,6.13647233]
[1752090648283,2.2386,156.89,156.79,6.13647233]
[1752090648594,6.3735,156.87,156.83,6.3745]
[1752090648887,559.26205548,156.94,156.86,6.13842655]
[1752090649090,559.26205548,156.94,156.87,6.3728]
[1752090649091,6.3718,156.91,156.87,6.3728]
[1752090649486,550.38,156.94,156.86,6.13842655]
[1752090649686,6.3713,156.92,156.89,6.3722]
[1752090649888,550.38,156.94,156.86,6.13842655]
[1752090650193,6.3712,156.92,156.89,6.3722]
[1752090650391,550.38,156.94,156.86,6.13842655]
[1752090650793,6.3719,156.9,156.87,6.3729]
[1752090650993,2.3396,156.93,156.86,6.13842655]
[1752090651392,2.3396,156.93,156.84,6.13842655]
[1752090651789,6.3723,156.89,156.86,6.3733]
[1752090652190,2.3396,156.93,156.86,6.3733]
[1752090652392,6.3721,156.9,156.86,6.3733]
[1752090652896,6.3722,156.9,156.86,6.3733]
[1752090653190,2.3396,156.93,156.85,6.3737]
[1752090653392,207.04,156.92,156.85,6.3737]
[1752090653700,213.17842655,156.92,156.83,6.13842655]
[1752090654100,6.3725,156.89,156.83,6.13842655]
[1752090654694,6.3725,156.89,156.86,6.3735]
[1752090654887,6.3727,156.88,156.83,6.13842655]
[1752090655587,6.3727,156.88,156.85,6.3736]
[1752090655787,6.3727,156.88,156.83,6.13842655]
[1752090656089,6.3725,156.89,156.86,6.3734]
[1752090656601,207.04,156.92,156.84,6.3742]
[1752090656602,6.3733,156.87,156.84,6.3742]
[1752090656794,6.13842655,156.91,156.79,62.0]
[1752090656996,6.13842655,156.91,156.81,6.13842655]
[1752090657802,6.13842655,156.91,156.83,6.3746]
[1752090657995,206.86,156.9,156.81,6.13842655]
[1752090658496,206.86,156.9,156.83,6.13842655]
[1752090659000,6.3734,156.87,156.84,6.3742]
[1752090659201,206.86,156.9,156.79,62.0]
[1752090659404,206.86,156.9,156.83,6.13842655]
[1752090659602,6.3727,156.88,156.85,6.3737]
[1752090660201,6.3726,156.89,156.85,6.3736]
[1752090660400,206.86,156.9,156.85,6.3736]
[1752090660599,6.13842655,156.89,156.76,2.2711]
[1752090660805,6.13842655,156.87,156.78,6.13842655]
[1752090661001,6.13842655,156.85,156.76,2.2711]
[1752090661199,6.13842655,156.85,156.75,8.31372655]
[1752090661200,2.2606,156.86,156.8,6.14346715]
[1752090661399,2.2606,156.86,156.78,6.14483331]
[1752090661699,6.3751,156.82,156.79,6.3761]
[1752090662099,2.2606,156.86,156.76,6.14483331]
[1752090662500,2.2606,156.86,156.77,6.14483331]
[1752090662702,2.2606,156.86,156.79,6.14483331]
[1752090663307,2.2606,156.86,156.81,6.3755]
[1752090663604,2.3303,156.88,156.81,62.0]
[1752090663801,8.7031,156.88,156.84,6.14483331]
[1752090664000,2.3303,156.88,156.81,62.0]
[1752090664302,8.7031,156.88,156.83,6.14483331]
[1752090664501,2.3303,156.88,156.83,6.14483331]
[1752090666003,2.3303,156.88,156.75,2.1753]
[1752090666203,2.3303,156.88,156.85,6.3738]
[1752090666405,2.3303,156.88,156.83,6.14483331]
[1752090666702,2.3303,156.88,156.85,6.14483331]
[1752090666907,2.2177,156.93,156.85,6.14483331]
[1752090667109,4.4982,156.93,156.87,6.14483331]
[1752090667409,4.4982,156.93,156.86,6.14483331]
[1752090668213,4.4982,156.93,156.87,6.14483331]
[1752090668900,2.2805,156.93,156.9,6.3718]
[1752090669507,8.6512,156.93,156.89,6.14483331]
[1752090669907,8.88205548,156.98,156.8,2.37]
[1752090670104,11.10435548,157.0,156.87,6.14483331]
[1752090670305,11.10435548,157.0,156.93,6.14483331]
[1752090670507,11.10435548,157.0,156.92,6.14483331]
[1752090670707,11.10435548,157.0,156.88,4.5256]
[1752090671006,11.08415548,157.01,156.88,4.5256]
[1752090671212,8.88205548,157.03,156.99,6.14483331]
[1752090671608,8.88205548,157.03,156.99,6.368]
[1752090671813,8.88205548,157.03,156.99,6.14483331]
[1752090672013,8.88205548,157.03,156.89,206.38]
[1752090672404,8.88205548,157.04,156.89,206.38]
[1752090672605,8.88205548,157.04,157.01,6.14483331]
[1752090673013,8.88205548,157.04,156.96,6.14483331]
[1752090673205,8.88205548,157.04,157.03,6.14483331]
[1752090673406,8.88205548,157.05,157.04,6.3662]
[1752090673611,11.86567865,157.12,156.97,4.444]
[1752090673809,11.85684702,157.14,157.11,6.14483331]
[1752090674006,11.85684702,157.14,157.06,2.2037]
[1752090674214,17.79851797,157.19,157.13,6.14483331]
[1752090674411,17.79851797,157.19,157.06,2.2037]
[1752090674611,23.7313573,157.32,157.14,6.11550147]
[1752090674812,574.1113573,157.33,157.13,62.0]
[1752090675012,550.38,157.33,157.13,62.0]
[1752090675309,550.38,157.33,157.14,556.49550147]
[1752090675717,4.4834,157.35,157.15,8.60663467]
[1752090676107,4.4834,157.35,157.16,237.34]
[1752090676311,6.11550147,157.25,157.06,2.2037]
[1752090676511,2.3376,157.24,157.07,242.76]
[1752090676720,2.3376,157.24,157.07,486.52]
[1752090676918,6.11550147,157.22,157.07,486.52]
[1752090677219,2.2287,157.23,157.05,550.02]
[1752090677423,6.11550147,157.19,157.05,550.02]
[1752090677608,8.34420147,157.23,157.08,6.11550147]
[1752090677812,2.2287,157.23,157.05,550.02]
[1752090678118,246.34,157.22,157.0,490.48]
[1752090678307,550.02,157.21,157.08,6.11550147]
[1752090678511,248.94,157.2,156.94,550.02]
[1752090678722,6.11550147,157.13,157.03,6.11550147]
[1752090678927,4.5654,157.12,157.0,10.42828769]
[1752090679225,4.5654,157.12,156.94,550.02]
[1752090679414,4.5654,157.12,157.02,10.42828769]
[1752090679613,4.5654,157.12,157.05,10.42828769]
[1752090679816,4.5654,157.12,156.97,10.42828769]
[1752090680012,4.5654,157.12,157.02,10.42828769]
[1752090680221,249.6,157.11,156.98,10.42828769]
[1752090680413,10.42828769,157.09,156.94,550.02]